[Event "*** SCC Grand Prix: Titled Tuesday Blitz"]
[Site "Chess.com"]
[Date "2020.06.02"]
[Round "2"]
[White "DonBroca"]
[Black "Elbek_Jumanov"]
[Result "0-1"]
[WhiteElo "2198"]
[BlackElo "2430"]
[TimeControl "180+1"]
[EndTime "10:18:00 PDT"]
[Termination "Elbek_Jumanov won by resignation"]

1. e4 {[%clk 0:03:00.9]} 1... c5 {[%clk 0:02:58.8]} 2. Nf3 {[%clk 0:02:59.1]}
2... e6 {[%clk 0:02:58.2]} 3. d4 {[%clk 0:02:59.1]} 3... cxd4 {[%clk 0:02:58.2]}
4. Nxd4 {[%clk 0:03:00]} 4... Nf6 {[%clk 0:02:58.1]} 5. Nc3 {[%clk 0:02:56.3]}
5... d6 {[%clk 0:02:56.8]} 6. g3 {[%clk 0:02:54.9]} 6... Nc6 {[%clk 0:02:55.7]}
7. Bg2 {[%clk 0:02:54.5]} 7... Bd7 {[%clk 0:02:55.3]} 8. O-O {[%clk 0:02:53.2]}
8... a6 {[%clk 0:02:54.8]} 9. Be3 {[%clk 0:02:49.6]} 9... Be7 {[%clk 0:02:54.3]}
10. h3 {[%clk 0:02:45.2]} 10... O-O {[%clk 0:02:53.6]} 11. Qd2 {[%clk
0:02:45.3]} 11... Qc7 {[%clk 0:02:52.6]} 12. Rad1 {[%clk 0:02:44.1]} 12... b5
{[%clk 0:02:51.3]} 13. Rfe1 {[%clk 0:02:44.3]} 13... Rac8 {[%clk 0:02:49.4]} 14.
Nce2 {[%clk 0:02:37.4]} 14... Rfd8 {[%clk 0:02:38.6]} 15. c3 {[%clk 0:02:36.1]}
15... Be8 {[%clk 0:02:30.4]} 16. Kh2 {[%clk 0:02:34.2]} 16... d5 {[%clk
0:02:29.8]} 17. exd5 {[%clk 0:01:47.2]} 17... Nxd5 {[%clk 0:02:28.2]} 18. Bg5
{[%clk 0:01:43.4]} 18... Na5 {[%clk 0:02:03.6]} 19. Bxe7 {[%clk 0:01:38.5]}
19... Qxe7 {[%clk 0:02:01.4]} 20. b3 {[%clk 0:01:28]} 20... Nc6 {[%clk
0:01:37.9]} 21. Nxc6 {[%clk 0:01:06.5]} 21... Bxc6 {[%clk 0:01:35.5]} 22. Nd4
{[%clk 0:01:00.4]} 22... Ba8 {[%clk 0:01:31.9]} 23. Nf5 {[%clk 0:00:35.1]} 23...
Qf6 {[%clk 0:01:27.6]} 24. Bxd5 {[%clk 0:00:26.9]} 24... Rxd5 {[%clk 0:01:20.1]}
25. Nd4 {[%clk 0:00:19.2]} 25... g6 {[%clk 0:01:01.7]} 26. Qe3 {[%clk
0:00:19.1]} 26... Rh5 {[%clk 0:00:45.7]} 27. f4 {[%clk 0:00:18.5]} 27... Rhc5
{[%clk 0:00:41.4]} 28. Rd3 {[%clk 0:00:14.8]} 28... Qe7 {[%clk 0:00:30.9]} 29.
Nf3 {[%clk 0:00:14.4]} 29... Qc7 {[%clk 0:00:27.7]} 30. Rc1 {[%clk 0:00:12.2]}
30... Qa5 {[%clk 0:00:25.3]} 31. Ng5 {[%clk 0:00:11.7]} 31... Qxa2+ {[%clk
0:00:21]} 32. Rd2 {[%clk 0:00:10.5]} 32... Qxb3 {[%clk 0:00:21]} 33. Nxe6 {[%clk
0:00:10.3]} 33... Qxe6 {[%clk 0:00:19.9]} 34. Qxe6 {[%clk 0:00:09.9]} 34... fxe6
{[%clk 0:00:20]} 35. Rdc2 {[%clk 0:00:09.7]} 35... b4 {[%clk 0:00:19.5]} 36. c4
{[%clk 0:00:09.9]} 36... a5 {[%clk 0:00:20]} 37. Kg1 {[%clk 0:00:08.6]} 37...
Kf7 {[%clk 0:00:20.2]} 38. Rb1 {[%clk 0:00:08.3]} 38... Be4 {[%clk 0:00:20.3]}
39. Rbb2 {[%clk 0:00:07.8]} 39... Bxc2 {[%clk 0:00:20]} 40. Rxc2 {[%clk
0:00:08.7]} 40... Rxc4 {[%clk 0:00:20.1]} 41. Rxc4 {[%clk 0:00:08]} 41... Rxc4
{[%clk 0:00:19.4]} 0-1

[Event "*** SCC Grand Prix: Titled Tuesday Blitz"]
[Site "Chess.com"]
[Date "2020.06.02"]
[Round "2"]
[White "GaboSalazar2001"]
[Black "Moon_stone123"]
[Result "0-1"]
[WhiteElo "2258"]
[BlackElo "2486"]
[TimeControl "180+1"]
[EndTime "10:18:01 PDT"]
[Termination "Moon_stone123 won by checkmate"]

1. e4 {[%clk 0:03:00.9]} 1... c5 {[%clk 0:02:59.9]} 2. Nf3 {[%clk 0:03:01.3]}
2... d6 {[%clk 0:03:00.1]} 3. d4 {[%clk 0:03:02]} 3... cxd4 {[%clk 0:03:01]} 4.
Nxd4 {[%clk 0:03:02.9]} 4... Nf6 {[%clk 0:03:01.6]} 5. Nc3 {[%clk 0:03:03.8]}
5... g6 {[%clk 0:03:02.2]} 6. Bg5 {[%clk 0:03:03.8]} 6... Bg7 {[%clk 0:03:02.4]}
7. Bb5+ {[%clk 0:03:04.4]} 7... Bd7 {[%clk 0:03:00.7]} 8. Qe2 {[%clk 0:03:05]}
8... a6 {[%clk 0:02:56.7]} 9. Bxd7+ {[%clk 0:03:02]} 9... Nbxd7 {[%clk
0:02:57.6]} 10. O-O-O {[%clk 0:03:02.6]} 10... Qa5 {[%clk 0:02:55]} 11. h4
{[%clk 0:02:57.6]} 11... Rc8 {[%clk 0:02:51.9]} 12. Nb3 {[%clk 0:02:53.6]} 12...
Qc7 {[%clk 0:02:45.2]} 13. h5 {[%clk 0:02:38]} 13... Qc4 {[%clk 0:02:25.3]} 14.
h6 {[%clk 0:01:58.5]} 14... Bf8 {[%clk 0:02:03.6]} 15. Qxc4 {[%clk 0:01:43.3]}
15... Rxc4 {[%clk 0:02:04.5]} 16. f3 {[%clk 0:01:43.6]} 16... e6 {[%clk
0:01:56.8]} 17. Rd4 {[%clk 0:01:22.9]} 17... Rxd4 {[%clk 0:01:54.4]} 18. Nxd4
{[%clk 0:01:23.8]} 18... Be7 {[%clk 0:01:52.8]} 19. Rd1 {[%clk 0:01:22]} 19...
Ng8 {[%clk 0:01:40.9]} 20. Be3 {[%clk 0:01:11.8]} 20... g5 {[%clk 0:01:39.9]}
21. Rh1 {[%clk 0:00:53.8]} 21... Ne5 {[%clk 0:01:04]} 22. Rh5 {[%clk 0:00:50.8]}
22... Ng6 {[%clk 0:00:48.3]} 23. Bxg5 {[%clk 0:00:43.4]} 23... Bxg5+ {[%clk
0:00:48.5]} 24. Rxg5 {[%clk 0:00:44.3]} 24... Nxh6 {[%clk 0:00:49]} 25. Kd2
{[%clk 0:00:41.3]} 25... Ng8 {[%clk 0:00:48.4]} 26. Ke3 {[%clk 0:00:39.3]} 26...
Nf6 {[%clk 0:00:48.6]} 27. Nb3 {[%clk 0:00:33.5]} 27... Ke7 {[%clk 0:00:47.6]}
28. f4 {[%clk 0:00:29.4]} 28... h6 {[%clk 0:00:46]} 29. Rg3 {[%clk 0:00:23.6]}
29... Rc8 {[%clk 0:00:38.3]} 30. Rh3 {[%clk 0:00:22.2]} 30... b5 {[%clk
0:00:36]} 31. a3 {[%clk 0:00:21.4]} 31... Rc4 {[%clk 0:00:34.5]} 32. Nd2 {[%clk
0:00:20]} 32... Rc8 {[%clk 0:00:34.2]} 33. Kf3 {[%clk 0:00:19.1]} 33... h5
{[%clk 0:00:33.3]} 34. Rh1 {[%clk 0:00:15.1]} 34... Rc5 {[%clk 0:00:32.3]} 35.
Re1 {[%clk 0:00:15.2]} 35... Nd7 {[%clk 0:00:30.4]} 36. g4 {[%clk 0:00:13]}
36... hxg4+ {[%clk 0:00:29.7]} 37. Kxg4 {[%clk 0:00:13.9]} 37... Nf6+ {[%clk
0:00:29.9]} 38. Kf3 {[%clk 0:00:14]} 38... Rc8 {[%clk 0:00:28.8]} 39. Nb3 {[%clk
0:00:14.3]} 39... Rh8 {[%clk 0:00:28.1]} 40. Re2 {[%clk 0:00:13.8]} 40... Rh3+
{[%clk 0:00:27.4]} 41. Kf2 {[%clk 0:00:11.1]} 41... Nxf4 {[%clk 0:00:27.2]} 42.
Re1 {[%clk 0:00:11.4]} 42... Ng6 {[%clk 0:00:23.6]} 43. Nd2 {[%clk 0:00:07.6]}
43... Rh2+ {[%clk 0:00:23]} 44. Ke3 {[%clk 0:00:08]} 44... Ng4+ {[%clk
0:00:22.5]} 45. Kd3 {[%clk 0:00:08.4]} 45... N6e5+ {[%clk 0:00:22.2]} 46. Kd4
{[%clk 0:00:07.4]} 46... Rxd2# {[%clk 0:00:22.1]} 0-1

[Event "*** SCC Grand Prix: Titled Tuesday Blitz"]
[Site "Chess.com"]
[Date "2020.06.02"]
[Round "2"]
[White "LisikValera"]
[Black "Saxar85"]
[Result "0-1"]
[WhiteElo "2493"]
[BlackElo "2728"]
[TimeControl "180+1"]
[EndTime "10:18:02 PDT"]
[Termination "Saxar85 won on time"]

1. d4 {[%clk 0:02:27.2]} 1... d6 {[%clk 0:02:58.9]} 2. e4 {[%clk 0:02:26.5]}
2... g6 {[%clk 0:02:58.4]} 3. Nc3 {[%clk 0:02:26.2]} 3... Bg7 {[%clk 0:02:57.9]}
4. h4 {[%clk 0:02:17.5]} 4... Nf6 {[%clk 0:02:56.7]} 5. Be2 {[%clk 0:02:11.2]}
5... h5 {[%clk 0:02:53.4]} 6. Nf3 {[%clk 0:02:10.1]} 6... Bg4 {[%clk 0:02:51.8]}
7. Ng5 {[%clk 0:02:08.9]} 7... Nc6 {[%clk 0:02:48.7]} 8. Be3 {[%clk 0:02:03.8]}
8... e5 {[%clk 0:02:43.4]} 9. d5 {[%clk 0:02:02.6]} 9... Nd4 {[%clk 0:02:34.7]}
10. Bxd4 {[%clk 0:01:55.7]} 10... exd4 {[%clk 0:02:34.5]} 11. Qxd4 {[%clk
0:01:56.6]} 11... O-O {[%clk 0:02:29.9]} 12. f3 {[%clk 0:01:55.9]} 12... Bd7
{[%clk 0:02:17.1]} 13. Qd2 {[%clk 0:01:54.7]} 13... c6 {[%clk 0:02:14.6]} 14.
O-O-O {[%clk 0:01:50.7]} 14... cxd5 {[%clk 0:02:08.4]} 15. Nxd5 {[%clk
0:01:47.3]} 15... Nxd5 {[%clk 0:02:07.1]} 16. Qxd5 {[%clk 0:01:46.7]} 16... Qb6
{[%clk 0:01:47.9]} 17. Qb3 {[%clk 0:01:46.3]} 17... Qf2 {[%clk 0:01:30.1]} 18.
Bc4 {[%clk 0:01:45.8]} 18... Be8 {[%clk 0:01:03.1]} 19. Rxd6 {[%clk 0:01:35.5]}
19... b5 {[%clk 0:01:02.1]} 20. Bd5 {[%clk 0:01:30.7]} 20... Rc8 {[%clk
0:00:57.4]} 21. Rxg6 {[%clk 0:01:27.4]} 21... a5 {[%clk 0:00:50.7]} 22. Nh3
{[%clk 0:01:20.4]} 22... a4 {[%clk 0:00:26.8]} 23. Nxf2 {[%clk 0:01:13.8]} 23...
axb3 {[%clk 0:00:26.7]} 24. Bxb3 {[%clk 0:01:08.8]} 24... Kh7 {[%clk 0:00:26.2]}
25. Rg5 {[%clk 0:01:08.1]} 25... Bh6 {[%clk 0:00:25.6]} 26. f4 {[%clk
0:01:05.4]} 26... f6 {[%clk 0:00:22.7]} 27. Rd5 {[%clk 0:00:56.7]} 27... Bxf4+
{[%clk 0:00:21.7]} 28. Kb1 {[%clk 0:00:57.2]} 28... Kh6 {[%clk 0:00:20.1]} 29.
Nd3 {[%clk 0:00:55.9]} 29... Bg3 {[%clk 0:00:19.4]} 30. e5 {[%clk 0:00:46.4]}
30... fxe5 {[%clk 0:00:12.5]} 31. Nxe5 {[%clk 0:00:41.1]} 31... Rf2 {[%clk
0:00:12.2]} 32. Rhd1 {[%clk 0:00:20.2]} 32... Rxg2 {[%clk 0:00:11.1]} 33. Nf3
{[%clk 0:00:16.5]} 33... Bc6 {[%clk 0:00:07.7]} 34. R5d3 {[%clk 0:00:13.9]}
34... Be4 {[%clk 0:00:05.5]} 35. Re3 {[%clk 0:00:11.9]} 35... Bf5 {[%clk
0:00:04.9]} 36. Nd4 {[%clk 0:00:11.1]} 36... Bg4 {[%clk 0:00:04.3]} 37. Be6
{[%clk 0:00:08.9]} 37... Bxd1 {[%clk 0:00:02.1]} 38. Bxc8 {[%clk 0:00:07.6]}
38... Bxh4 {[%clk 0:00:02.1]} 39. a3 {[%clk 0:00:06]} 39... Bf6 {[%clk
0:00:01.5]} 40. Re6 {[%clk 0:00:04.2]} 40... Kg6 {[%clk 0:00:01.9]} 0-1

[Event "*** SCC Grand Prix: Titled Tuesday Blitz"]
[Site "Chess.com"]
[Date "2020.06.02"]
[Round "2"]
[White "SketchyMoves"]
[Black "Mikhal867"]
[Result "1-0"]
[WhiteElo "2636"]
[BlackElo "2275"]
[TimeControl "180+1"]
[EndTime "10:18:03 PDT"]
[Termination "SketchyMoves won by resignation"]

1. e4 {[%clk 0:02:47.6]} 1... g6 {[%clk 0:02:58]} 2. Nc3 {[%clk 0:02:46.3]} 2...
Bg7 {[%clk 0:02:58]} 3. f4 {[%clk 0:02:46]} 3... e6 {[%clk 0:02:54.3]} 4. Nf3
{[%clk 0:02:45.3]} 4... d5 {[%clk 0:02:54.2]} 5. e5 {[%clk 0:02:43.3]} 5... d4
{[%clk 0:02:44.7]} 6. Ne4 {[%clk 0:02:42]} 6... b6 {[%clk 0:02:44.4]} 7. Bb5+
{[%clk 0:02:38]} 7... Bd7 {[%clk 0:02:43.1]} 8. Nxd4 {[%clk 0:02:30.1]} 8...
Bxb5 {[%clk 0:02:33.3]} 9. Nxb5 {[%clk 0:02:31]} 9... a6 {[%clk 0:02:24.8]} 10.
Nbc3 {[%clk 0:02:28.5]} 10... Nh6 {[%clk 0:02:18.1]} 11. d4 {[%clk 0:02:25.2]}
11... Nc6 {[%clk 0:02:16.4]} 12. d5 {[%clk 0:02:19.3]} 12... exd5 {[%clk
0:02:15.3]} 13. Qxd5 {[%clk 0:02:19]} 13... Qxd5 {[%clk 0:02:14.4]} 14. Nxd5
{[%clk 0:02:19.9]} 14... O-O-O {[%clk 0:02:14.1]} 15. c4 {[%clk 0:02:12.9]}
15... Nd4 {[%clk 0:02:08.6]} 16. O-O {[%clk 0:02:05.7]} 16... Kb7 {[%clk
0:02:04.1]} 17. Be3 {[%clk 0:02:00.4]} 17... Nc2 {[%clk 0:02:02.9]} 18. Rac1
{[%clk 0:02:00.2]} 18... Nxe3 {[%clk 0:02:02.4]} 19. Nxe3 {[%clk 0:02:01.1]}
19... Rd4 {[%clk 0:02:00.4]} 20. Ng5 {[%clk 0:01:47.7]} 20... Rd3 {[%clk
0:01:50.2]} 21. Rfe1 {[%clk 0:01:43.4]} 21... Bf8 {[%clk 0:01:44]} 22. Rcd1
{[%clk 0:01:35.3]} 22... Rxd1 {[%clk 0:01:42.5]} 23. Nxd1 {[%clk 0:01:30.6]}
23... Bc5+ {[%clk 0:01:42.4]} 24. Kf1 {[%clk 0:01:31.1]} 24... Ng4 {[%clk
0:01:34.6]} 25. h3 {[%clk 0:01:29.2]} 25... Nh6 {[%clk 0:01:31.5]} 26. g4 {[%clk
0:01:25.5]} 26... Rd8 {[%clk 0:01:23.1]} 27. Ne4 {[%clk 0:01:10.4]} 27... Kc6
{[%clk 0:01:16.3]} 28. Nxc5 {[%clk 0:01:00]} 28... Kxc5 {[%clk 0:01:15.9]} 29.
Ne3 {[%clk 0:01:00]} 29... Rd2 {[%clk 0:01:09.1]} 30. Re2 {[%clk 0:00:56.9]}
30... Rd3 {[%clk 0:01:07.6]} 31. Kf2 {[%clk 0:00:49.9]} 31... Ng8 {[%clk
0:01:04.8]} 32. Rc2 {[%clk 0:00:30.7]} 32... Ne7 {[%clk 0:00:59.6]} 33. Ke2
{[%clk 0:00:29.2]} 33... Rd4 {[%clk 0:00:59.1]} 34. Kf3 {[%clk 0:00:22.2]} 34...
Nc6 {[%clk 0:00:58.5]} 35. a3 {[%clk 0:00:21.8]} 35... a5 {[%clk 0:00:57.1]} 36.
Rc3 {[%clk 0:00:20.8]} 36... Rd2 {[%clk 0:00:54.5]} 37. b3 {[%clk 0:00:19.3]}
37... Nd4+ {[%clk 0:00:47.6]} 38. Ke4 {[%clk 0:00:19.4]} 38... Ne6 {[%clk
0:00:47.4]} 39. Nd5 {[%clk 0:00:18.6]} 39... Ra2 {[%clk 0:00:19.8]} 40. b4+
{[%clk 0:00:18.3]} 40... axb4 {[%clk 0:00:19.6]} 41. axb4+ {[%clk 0:00:18.6]}
41... Kc6 {[%clk 0:00:19.8]} 42. f5 {[%clk 0:00:19.5]} 42... Ng5+ {[%clk
0:00:17.9]} 43. Kf4 {[%clk 0:00:19.4]} 43... Nxh3+ {[%clk 0:00:18]} 44. Rxh3
{[%clk 0:00:19]} 44... Re2 {[%clk 0:00:17.1]} 45. Rxh7 {[%clk 0:00:16.7]} 45...
Rf2+ {[%clk 0:00:16.8]} 46. Kg5 {[%clk 0:00:17]} 46... gxf5 {[%clk 0:00:16.3]}
47. gxf5 {[%clk 0:00:17.9]} 47... b5 {[%clk 0:00:16]} 48. Rxf7 {[%clk
0:00:15.2]} 48... bxc4 {[%clk 0:00:15.8]} 49. Ne3 {[%clk 0:00:15.5]} 49... Re2
{[%clk 0:00:14.5]} 50. Nxc4 {[%clk 0:00:15.3]} 50... Kb5 {[%clk 0:00:14.5]} 51.
Rxc7 {[%clk 0:00:15]} 51... Rg2+ {[%clk 0:00:14.3]} 52. Kf6 {[%clk 0:00:15]} 1-0

[Event "*** SCC Grand Prix: Titled Tuesday Blitz"]
[Site "Chess.com"]
[Date "2020.06.02"]
[Round "2"]
[White "vanImpe"]
[Black "Baby_Shak"]
[Result "0-1"]
[WhiteElo "2344"]
[BlackElo "2635"]
[TimeControl "180+1"]
[EndTime "10:18:04 PDT"]
[Termination "Baby_Shak won by resignation"]

1. g3 {[%clk 0:03:00.9]} 1... d5 {[%clk 0:02:56.6]} 2. Bg2 {[%clk 0:03:01.2]}
2... Nc6 {[%clk 0:02:56.2]} 3. c4 {[%clk 0:03:01.4]} 3... d4 {[%clk 0:02:53.1]}
4. Nf3 {[%clk 0:03:01.4]} 4... Nf6 {[%clk 0:02:50.4]} 5. d3 {[%clk 0:03:01.5]}
5... e5 {[%clk 0:02:48.8]} 6. O-O {[%clk 0:03:02]} 6... a5 {[%clk 0:02:44.3]} 7.
Na3 {[%clk 0:03:00.4]} 7... Be7 {[%clk 0:02:41.3]} 8. Nc2 {[%clk 0:03:00.6]}
8... O-O {[%clk 0:02:38.5]} 9. e3 {[%clk 0:03:01.1]} 9... Bf5 {[%clk 0:02:35.3]}
10. exd4 {[%clk 0:03:01.1]} 10... exd4 {[%clk 0:02:36]} 11. Re1 {[%clk
0:02:59.6]} 11... Re8 {[%clk 0:02:25.7]} 12. Bf4 {[%clk 0:02:59.5]} 12... Qd7
{[%clk 0:02:16.6]} 13. Ne5 {[%clk 0:02:58.9]} 13... Nxe5 {[%clk 0:02:16.1]} 14.
Bxe5 {[%clk 0:02:59.3]} 14... c5 {[%clk 0:02:16.1]} 15. Bxf6 {[%clk 0:02:55.9]}
15... Bxf6 {[%clk 0:02:15.4]} 16. Qf3 {[%clk 0:02:55]} 16... Rxe1+ {[%clk
0:02:04]} 17. Rxe1 {[%clk 0:02:51.5]} 17... Rb8 {[%clk 0:02:04.5]} 18. Na3
{[%clk 0:02:48.4]} 18... b6 {[%clk 0:01:47.2]} 19. Nb5 {[%clk 0:02:47.1]} 19...
h6 {[%clk 0:01:43]} 20. h4 {[%clk 0:02:46.2]} 20... Bg4 {[%clk 0:01:34.6]} 21.
Qd5 {[%clk 0:02:43.2]} 21... Re8 {[%clk 0:01:32.6]} 22. Rxe8+ {[%clk 0:02:40.9]}
22... Qxe8 {[%clk 0:01:33.5]} 23. Be4 {[%clk 0:02:38.2]} 23... Qd8 {[%clk
0:01:25.8]} 24. Qxd8+ {[%clk 0:02:21.3]} 24... Bxd8 {[%clk 0:01:25]} 25. Kg2
{[%clk 0:02:21.7]} 25... Kf8 {[%clk 0:01:18]} 26. f3 {[%clk 0:02:18.5]} 26...
Bd7 {[%clk 0:01:16.9]} 27. h5 {[%clk 0:02:16.8]} 27... f5 {[%clk 0:01:10.7]} 28.
Bd5 {[%clk 0:02:16.1]} 28... Ke7 {[%clk 0:01:10.2]} 29. f4 {[%clk 0:02:11.6]}
29... Be8 {[%clk 0:01:08.2]} 30. Bf3 {[%clk 0:02:11.1]} 30... Bxb5 {[%clk
0:00:55.1]} 31. cxb5 {[%clk 0:02:10.8]} 31... Kd6 {[%clk 0:00:54]} 32. Bd1
{[%clk 0:02:07.2]} 32... c4 {[%clk 0:00:51.5]} 33. dxc4 {[%clk 0:02:07.3]} 33...
Kc5 {[%clk 0:00:51.8]} 34. Be2 {[%clk 0:02:03.9]} 34... Kb4 {[%clk 0:00:46.3]}
35. Bd3 {[%clk 0:02:03]} 35... a4 {[%clk 0:00:46]} 36. Kf3 {[%clk 0:01:58.1]}
36... Be7 {[%clk 0:00:30.5]} 37. Ke2 {[%clk 0:01:57.4]} 37... a3 {[%clk
0:00:19.5]} 38. bxa3+ {[%clk 0:01:57]} 38... Kxa3 {[%clk 0:00:18.7]} 39. Bxf5
{[%clk 0:01:56.5]} 39... Kb4 {[%clk 0:00:18.3]} 40. Kd3 {[%clk 0:01:56.1]} 40...
Bf6 {[%clk 0:00:18.7]} 41. Be6 {[%clk 0:01:52.3]} 41... Kc5 {[%clk 0:00:18.7]}
42. Ke4 {[%clk 0:01:50.4]} 42... Kb4 {[%clk 0:00:18.4]} 43. g4 {[%clk
0:01:50.4]} 43... Kc3 {[%clk 0:00:18.2]} 44. Kf5 {[%clk 0:01:42]} 44... d3
{[%clk 0:00:17.2]} 45. g5 {[%clk 0:01:42.5]} 45... Bd4 {[%clk 0:00:15.2]} 46.
gxh6 {[%clk 0:01:39.1]} 46... d2 {[%clk 0:00:14.4]} 47. hxg7 {[%clk 0:01:32.2]}
47... Bxg7 {[%clk 0:00:13.5]} 48. Kg6 {[%clk 0:01:31.9]} 48... d1=Q {[%clk
0:00:12.9]} 49. Kxg7 {[%clk 0:01:32.2]} 49... Qxh5 {[%clk 0:00:12.7]} 50. f5
{[%clk 0:01:31.6]} 50... Qg5+ {[%clk 0:00:11.2]} 51. Kf7 {[%clk 0:01:31.3]}
51... Kd4 {[%clk 0:00:11.7]} 52. a4 {[%clk 0:01:27.9]} 52... Ke5 {[%clk
0:00:11.3]} 53. Ke8 {[%clk 0:01:26.9]} 53... Kd6 {[%clk 0:00:09.8]} 54. Kf7
{[%clk 0:01:26.8]} 54... Qe7+ {[%clk 0:00:09]} 55. Kg6 {[%clk 0:01:26.7]} 55...
Ke5 {[%clk 0:00:09.6]} 56. Kh5 {[%clk 0:01:19.7]} 56... Qf6 {[%clk 0:00:10.5]}
57. Kg4 {[%clk 0:01:19.5]} 57... Qg7+ {[%clk 0:00:08.8]} 58. Kf3 {[%clk
0:01:18.1]} 58... Qg5 {[%clk 0:00:07.2]} 59. Kf2 {[%clk 0:01:17.5]} 59... Ke4
{[%clk 0:00:06.9]} 60. Bd5+ {[%clk 0:01:16.6]} 60... Kf4 {[%clk 0:00:07.1]} 61.
Be6 {[%clk 0:01:16.2]} 61... Qg3+ {[%clk 0:00:07]} 62. Ke2 {[%clk 0:01:16.5]}
62... Qe3+ {[%clk 0:00:07.4]} 63. Kd1 {[%clk 0:01:15.5]} 63... Qc3 {[%clk
0:00:07.8]} 64. Ke2 {[%clk 0:01:15.2]} 64... Qc2+ {[%clk 0:00:08]} 65. Kf1
{[%clk 0:01:14.3]} 65... Ke3 {[%clk 0:00:07.9]} 66. Kg1 {[%clk 0:01:13.8]} 66...
Qf2+ {[%clk 0:00:07.5]} 67. Kh1 {[%clk 0:01:13.3]} 67... Kf3 {[%clk 0:00:08.4]}
0-1

[Event "*** SCC Grand Prix: Titled Tuesday Blitz"]
[Site "Chess.com"]
[Date "2020.06.02"]
[Round "2"]
[White "Guenplen"]
[Black "MightyGMpretender"]
[Result "1/2-1/2"]
[WhiteElo "2916"]
[BlackElo "2577"]
[TimeControl "180+1"]
[EndTime "10:18:07 PDT"]
[Termination "Game drawn by repetition"]

1. d4 {[%clk 0:03:00.9]} 1... Nf6 {[%clk 0:02:58.2]} 2. Bf4 {[%clk 0:03:00.7]}
2... d5 {[%clk 0:02:54.2]} 3. e3 {[%clk 0:03:00.3]} 3... c5 {[%clk 0:02:54.6]}
4. c3 {[%clk 0:02:59.6]} 4... Nc6 {[%clk 0:02:53.1]} 5. Nd2 {[%clk 0:02:59.2]}
5... cxd4 {[%clk 0:02:53.6]} 6. exd4 {[%clk 0:02:58.9]} 6... Bf5 {[%clk
0:02:50.4]} 7. Ngf3 {[%clk 0:02:58.1]} 7... e6 {[%clk 0:02:51]} 8. Be2 {[%clk
0:02:58.2]} 8... Bd6 {[%clk 0:02:50.6]} 9. Bxd6 {[%clk 0:02:58.2]} 9... Qxd6
{[%clk 0:02:51.5]} 10. O-O {[%clk 0:02:58.7]} 10... O-O {[%clk 0:02:51]} 11. Re1
{[%clk 0:02:58.7]} 11... Nd7 {[%clk 0:02:44.4]} 12. Nb3 {[%clk 0:02:46.9]} 12...
Rab8 {[%clk 0:02:26.6]} 13. Bd3 {[%clk 0:02:44.9]} 13... Bxd3 {[%clk 0:02:23.2]}
14. Qxd3 {[%clk 0:02:45.8]} 14... b5 {[%clk 0:02:20.7]} 15. a3 {[%clk
0:02:23.2]} 15... a5 {[%clk 0:02:15]} 16. Ng5 {[%clk 0:02:16.8]} 16... Nf6
{[%clk 0:01:55.2]} 17. Nc5 {[%clk 0:02:16.1]} 17... h6 {[%clk 0:01:47.9]} 18.
Nf3 {[%clk 0:02:14.1]} 18... a4 {[%clk 0:01:48.5]} 19. Re2 {[%clk 0:02:05.6]}
19... Nd7 {[%clk 0:01:47.3]} 20. Nxd7 {[%clk 0:02:04.5]} 20... Qxd7 {[%clk
0:01:48.2]} 21. Rae1 {[%clk 0:02:03.2]} 21... Na5 {[%clk 0:01:48.6]} 22. Ne5
{[%clk 0:02:02.5]} 22... Qc7 {[%clk 0:01:48.1]} 23. Qf3 {[%clk 0:01:52.4]} 23...
Nc4 {[%clk 0:01:45.6]} 24. Nd3 {[%clk 0:01:52.2]} 24... Qd8 {[%clk 0:01:38.6]}
25. g3 {[%clk 0:01:47.7]} 25... Qf6 {[%clk 0:01:36.3]} 26. Qg4 {[%clk
0:01:37.7]} 26... g6 {[%clk 0:01:25.2]} 27. Nf4 {[%clk 0:01:19.5]} 27... Qf5
{[%clk 0:01:19.7]} 28. h3 {[%clk 0:00:57.5]} 28... Rb7 {[%clk 0:00:57.2]} 29.
Kg2 {[%clk 0:00:52.7]} 29... Kh7 {[%clk 0:00:55.6]} 30. Qf3 {[%clk 0:00:45.2]}
30... g5 {[%clk 0:00:51.9]} 31. Nd3 {[%clk 0:00:44.7]} 31... Qxf3+ {[%clk
0:00:51.8]} 32. Kxf3 {[%clk 0:00:45.6]} 32... Kg7 {[%clk 0:00:49]} 33. Kg2
{[%clk 0:00:40.4]} 33... Rc7 {[%clk 0:00:38.3]} 34. f3 {[%clk 0:00:37.8]} 34...
Rcc8 {[%clk 0:00:38]} 35. g4 {[%clk 0:00:33.8]} 35... h5 {[%clk 0:00:34.8]} 36.
Kg3 {[%clk 0:00:14.5]} 36... Rh8 {[%clk 0:00:33]} 37. Ne5 {[%clk 0:00:09]} 37...
hxg4 {[%clk 0:00:23.3]} 38. hxg4 {[%clk 0:00:09]} 38... Rh7 {[%clk 0:00:17.7]}
39. Nxc4 {[%clk 0:00:07.5]} 39... bxc4 {[%clk 0:00:17.9]} 40. Rh2 {[%clk
0:00:07.5]} 40... Rxh2 {[%clk 0:00:17.2]} 41. Kxh2 {[%clk 0:00:08.4]} 41... Rb8
{[%clk 0:00:18]} 42. Re2 {[%clk 0:00:08.2]} 42... Kg6 {[%clk 0:00:17.9]} 43. Kg3
{[%clk 0:00:08.2]} 43... Rh8 {[%clk 0:00:18]} 44. Kg2 {[%clk 0:00:03.1]} 44...
Kf6 {[%clk 0:00:17.1]} 45. Re1 {[%clk 0:00:03]} 45... Kg6 {[%clk 0:00:17.3]} 46.
Re2 {[%clk 0:00:03.3]} 46... Kf6 {[%clk 0:00:17.8]} 47. Re1 {[%clk 0:00:03.7]}
47... Kg6 {[%clk 0:00:18.3]} 48. Re2 {[%clk 0:00:04.2]} 1/2-1/2